fUST/lending_fUST_20250831
["ID","MTS","AMOUNT","RATE_DAILY","PERIOD"]
[382324839,1756578656068,-480.0,0.00019452,2]
[382324840,1756578656077,-543.49,0.00019452,2]
[382324841,1756578656087,-480.0,0.00019452,2]
[382324842,1756578656096,-548.27,0.00019452,2]
[382324843,1756578656106,-480.0,0.00019452,2]
[382324844,1756578656115,-480.0,0.00019452,2]
[382324845,1756578656124,-480.0,0.00019452,2]
[382324846,1756578656134,-480.0,0.00019452,2]
[382324847,1756578656144,-586.64,0.00019452,2]
[382324848,1756578656153,-541.67,0.00019452,2]
[382324849,1756578656162,-480.0,0.00019452,2]
[382324850,1756578656172,-480.0,0.00019452,2]
[382324851,1756578656182,-480.0,0.00019452,2]
[382324852,1756578656192,-480.0,0.00019452,2]
[382324853,1756578656201,-480.0,0.00019452,2]
[382324854,1756578656210,-499.03,0.00019452,2]
[382324855,1756578656220,-480.0,0.00019452,2]
[382324856,1756578656229,-1148.67,0.00019452,2]
[382324857,1756578656239,-480.0,0.00019452,2]
[382324858,1756578656248,-1583.59,0.00019452,2]
[382324859,1756578656258,-480.0,0.00019452,2]
[382324860,1756578656268,-480.0,0.00019452,2]
[382324861,1756578656278,-480.0,0.00019452,2]
[382324862,1756578656288,-480.0,0.00019452,2]
[382324863,1756578656298,-480.0,0.00019452,2]
[382324864,1756578656308,-997.27,0.00019452,2]
[382324865,1756578656319,-636.35,0.00019452,2]
[382324866,1756578656329,-603.67,0.00019452,2]
[382324867,1756578656338,-480.0,0.00019452,2]
[382324868,1756578656348,-623.24,0.00019452,2]
[382324869,1756578656358,-761.34,0.00019452,2]
[382324870,1756578656368,-480.0,0.00019452,2]
[382324871,1756578656378,-886.62,0.00019452,2]
[382324872,1756578656388,-480.0,0.00019452,2]
[382324873,1756578656398,-480.0,0.00019452,2]
[382324874,1756578656408,-480.0,0.00019452,2]
[382324875,1756578656417,-480.0,0.00019452,2]
[382324876,1756578656427,-480.0,0.00019452,2]
[382324877,1756578656438,-1124.24,0.00019452,2]
[382324878,1756578656447,-393.3810407,0.00019452,2]
[382324879,1756578656457,-480.0,0.00019452,2]
[382324880,1756578656467,-961.44,0.00019452,2]
[382324881,1756578656477,-480.0,0.00019452,2]
[382324882,1756578656487,-506.13,0.00019452,2]
[382324883,1756578656497,-480.0,0.00019452,2]
[382324884,1756578656507,-480.0,0.00019452,2]
[382324885,1756578656517,-480.0,0.00019452,2]
[382324886,1756578656532,-751.04,0.00019452,2]
[382324887,1756578656545,-519.49,0.00019452,2]
[382324888,1756578656555,-480.0,0.00019452,2]
[382324889,1756578656565,-480.0,0.00019452,2]
[382324890,1756578656575,-480.0,0.00019452,2]
[382324891,1756578656591,-1319.23,0.00019452,2]
[382324892,1756578656602,-480.0,0.00019452,2]
[382324893,1756578656612,-609.59,0.00019452,2]
[382324894,1756578656622,-480.0,0.00019452,2]
[382324895,1756578656632,-1017.86,0.00019452,2]
[382324896,1756578656642,-715.93,0.00019452,2]
[382324897,1756578656653,-480.0,0.00019452,2]
[382324898,1756578656663,-480.0,0.00019452,2]
[382324899,1756578656674,-537.77,0.00019452,2]
[382324900,1756578656685,-480.0,0.00019452,2]
[382324901,1756578656697,-553.34,0.00019452,2]
[382324902,1756578656707,-199.79811512,0.00019452,2]
[382324903,1756578656717,-480.0,0.00019452,2]
[382324904,1756578656727,-480.0,0.00019452,2]
[382324905,1756578656737,-500.0,0.00019452,2]
[382324906,1756578656746,-480.0,0.00019452,2]
[382324907,1756578656756,-480.0,0.00019452,2]
[382324908,1756578656766,-480.0,0.00019452,2]
[382324909,1756578656776,-1193.0,0.00019452,2]
[382324910,1756578656786,-480.0,0.00019452,2]
[382324911,1756578656796,-480.0,0.00019452,2]
[382324912,1756578656805,-2123.72,0.00019452,2]
[382324913,1756578656815,-480.0,0.00019452,2]
[382324914,1756578656825,-1659.47,0.00019452,2]
[382324915,1756578656835,-692.48,0.00019452,2]
[382324916,1756578656844,-1515.33,0.00019452,2]
[382324917,1756578656854,-480.0,0.00019452,2]
[382324918,1756578656863,-1167.91,0.00019452,2]
[382324919,1756578656873,-1882.98,0.00019452,2]
[382324920,1756578656883,-480.0,0.00019452,2]
[382324921,1756578656893,-480.0,0.00019452,2]
[382324922,1756578656903,-480.0,0.00019452,2]
[382324923,1756578656914,-480.0,0.00019452,2]
[382324924,1756578656926,-480.0,0.00019452,2]
[382324925,1756578656936,-843.65,0.00019452,2]
[382324926,1756578656946,-480.0,0.00019452,2]
[382324927,1756578656957,-480.0,0.00019452,2]
[382324928,1756578656967,-480.0,0.00019452,2]
[382324929,1756578656977,-587.64,0.00019452,2]
[382324930,1756578656988,-1358.6,0.00019452,2]
[382324931,1756578656999,-633.82,0.00019452,2]
[382324932,1756578657009,-480.0,0.00019452,2]
[382324933,1756578657020,-480.0,0.00019452,2]
[382324934,1756578657032,-480.0,0.00019452,2]
[382324935,1756578657041,-480.0,0.00019452,2]
[382324936,1756578657052,-480.0,0.00019452,2]
[382324937,1756578657062,-852.89,0.00019452,2]
[382324938,1756578657072,-5667.41,0.00019452,2]
[382324939,1756578657082,-1477.25,0.00019452,2]
[382324940,1756578657092,-480.0,0.00019452,2]
[382324941,1756578657102,-1691.0,0.00019452,2]
[382324942,1756578657113,-480.0,0.00019452,2]
[382324943,1756578657122,-661.69,0.00019452,2]
[382324944,1756578657132,-1670.05,0.00019452,2]
[382324945,1756578657141,-2103.5,0.00019452,2]
[382324946,1756578657150,-746.98,0.00019452,2]
[382324947,1756578657159,-480.0,0.00019452,2]
[382324948,1756578657169,-765.89,0.00019452,2]
[382324949,1756578657179,-964.14,0.00019452,2]
[382324950,1756578657189,-1822.37,0.00019452,2]
[382324951,1756578657199,-828.58,0.00019452,2]
[382324952,1756578657209,-480.0,0.00019452,2]
[382324953,1756578657218,-480.0,0.00019452,2]
[382324954,1756578657228,-958.81,0.00019452,2]
[382324955,1756578657238,-842.47,0.00019452,2]
[382324956,1756578657248,-480.0,0.00019452,2]
[382324957,1756578657258,-616.82,0.00019452,2]
[382324958,1756578657268,-480.0,0.00019452,2]
[382324959,1756578657277,-917.09620691,0.00019452,2]
[382324960,1756578657798,-530.32379309,0.00019452,2]
[382324961,1756578657809,-480.0,0.00019452,2]
[382324962,1756578657820,-1367.14,0.00019452,2]
[382324963,1756578657830,-480.0,0.00019452,2]
[382324964,1756578657841,-647.17,0.00019452,2]
[382324965,1756578657851,-2259.26,0.00019452,2]
[382324966,1756578657862,-480.0,0.00019452,2]
[382324967,1756578657871,-2019.18,0.00019452,2]
[382324968,1756578657881,-480.0,0.00019452,2]
[382324969,1756578657891,-480.0,0.00019452,2]
[382324970,1756578657901,-2494.79,0.00019452,2]
[382324971,1756578657911,-480.0,0.00019452,2]
[382324972,1756578657921,-480.0,0.00019452,2]
[382324973,1756578657931,-480.0,0.00019452,2]
[382324974,1756578657941,-480.0,0.00019452,2]
[382324975,1756578657951,-480.0,0.00019452,2]
[382324976,1756578657961,-834.41,0.00019452,2]
[382324977,1756578657972,-1746.94,0.00019452,2]
[382324978,1756578657982,-485.12781445,0.00019452,2]
[382324979,1756578657992,-480.0,0.00019452,2]
[382324980,1756578658002,-2167.42,0.00019452,2]
[382324981,1756578658012,-480.0,0.00019452,2]
[382324982,1756578658022,-480.0,0.00019452,2]
[382324983,1756578658032,-688.02,0.00019452,2]
[382324984,1756578658042,-1878.94,0.00019452,2]
[382324985,1756578658052,-480.0,0.00019452,2]
[382324986,1756578658062,-1628.37,0.00019452,2]
[382324987,1756578658073,-2707.1,0.00019452,2]
[382324988,1756578658084,-2124.06,0.00019452,2]
[382324989,1756578658094,-480.0,0.00019452,2]
[382324990,1756578658103,-480.0,0.00019452,2]
[382324991,1756578658114,-480.0,0.00019452,2]
[382324992,1756578658124,-800.65,0.00019452,2]
[382324993,1756578658134,-481.07404517,0.00019452,2]
[382324994,1756578658144,-480.0,0.00019452,2]
[382324995,1756578658156,-2402.29,0.00019452,2]
[382324996,1756578658166,-2462.99,0.00019452,2]
[382324997,1756578658176,-7143.33,0.00019452,2]
[382324998,1756578658186,-797.44,0.00019452,2]
[382324999,1756578658197,-480.0,0.00019452,2]
[382325000,1756578658207,-480.0,0.00019452,2]
[382325001,1756578658217,-2057.12,0.00019452,2]
[382325002,1756578658227,-760.12,0.00019452,2]
[382325003,1756578658238,-480.0,0.00019452,2]
[382325004,1756578658248,-1549.65,0.00019452,2]
[382325005,1756578658258,-563.93,0.00019452,2]
[382325006,1756578658268,-480.0,0.00019452,2]
[382325007,1756578658278,-480.0,0.00019452,2]
[382325008,1756578658287,-1950.39,0.00019452,2]
[382325009,1756578658297,-1793.44,0.00019452,2]
[382325010,1756578658308,-480.0,0.00019452,2]
[382325011,1756578658317,-480.0,0.00019452,2]
[382325012,1756578658329,-480.0,0.00019452,2]
[382325013,1756578658339,-216.67611592,0.00019452,2]
[382325014,1756578658445,-263.32388408,0.00019452,2]
[382325015,1756578658456,-480.0,0.00019452,2]
[382325016,1756578658466,-480.0,0.00019452,2]
[382325017,1756578658477,-1461.77,0.00019452,2]
[382325018,1756578658488,-352.33117123,0.00019452,2]
[382325019,1756578661053,-0.00862815,0.00019178,2]
[382325020,1756578661308,-150.99137185,0.00019178,2]
[382325021,1756578661318,-151.0,0.00019178,2]
[382325022,1756578661327,-151.0,0.00019178,2]
[382325023,1756578661336,-151.0,0.00019178,2]
[382325024,1756578661345,-151.0,0.00019178,2]
[382325025,1756578661354,-151.0,0.00019178,2]
[382325026,1756578661364,-151.0,0.00019178,2]
[382325027,1756578661373,-151.0,0.00019178,2]
[382325028,1756578661382,-168.648308,0.00019178,2]
[382325029,1756578661391,-151.0,0.00019178,2]
[382325030,1756578661517,-151.0,0.00019178,2]
[382325031,1756578661527,-151.0,0.00019178,2]
[382325032,1756578661536,-1543.85882877,0.00019452,2]
[382325033,1756578661545,-480.0,0.00019452,2]
[382325034,1756578661555,-480.0,0.00019452,2]
[382325035,1756578661564,-480.0,0.00019452,2]
[382325036,1756578661574,-830.95,0.00019452,2]
[382325037,1756578661584,-480.0,0.00019452,2]
[382325038,1756578661593,-1839.02,0.00019452,2]
[382325039,1756578661603,-480.0,0.00019452,2]
[382325040,1756578661612,-776.61,0.00019452,2]
[382325041,1756578661622,-1251.90358233,0.00019452,2]
[382325042,1756578661637,-715.40641767,0.00019452,2]
[382325043,1756578661646,-2438.4,0.00019452,2]
[382325044,1756578661656,-537.12484638,0.00019452,2]
[382325045,1756578661981,-480.0,0.00019178,2]
[382325046,1756578661990,-151.0,0.00019178,2]
[382325047,1756578662000,-151.0,0.00019178,2]
[382325048,1756578662010,-151.0,0.00019178,2]
[382325049,1756578662019,-480.0,0.00019178,2]
[382325050,1756578662030,-151.779159,0.00019178,2]
[382325051,1756578662039,-151.0,0.00019178,2]
[382325052,1756578662049,-151.0,0.00019178,2]
[382325053,1756578662058,-151.0,0.00019178,2]
[382325054,1756578662068,-266.29515362,0.00019452,2]
[382325055,1756578662079,-2250.42,0.00019452,2]
[382325056,1756578662088,-2043.75,0.00019452,2]
[382325057,1756578662098,-661.03,0.00019452,2]
[382325058,1756578662107,-480.0,0.00019452,2]
[382325059,1756578662117,-480.0,0.00019452,2]
[382325060,1756578662126,-1752.6,0.00019452,2]
[382325061,1756578662135,-2263.39,0.00019452,2]
[382325062,1756578662144,-501.7,0.00019452,2]
[382325063,1756578662154,-1659.43114555,0.00019452,2]
[382325064,1756578662877,-298.150487,0.00019178,2]
[382325065,1756578662887,-3312.44,0.00019178,2]
[382325066,1756578662896,-480.0,0.00019178,2]
[382325067,1756578662906,-151.0,0.00019178,2]
[382325068,1756578662915,-151.0,0.00019178,2]
[382325069,1756578662925,-532.02594004,0.00019178,2]
[382325070,1756578662934,-480.0,0.00019178,2]
[382325071,1756578662944,-151.0,0.00019178,2]
[382325072,1756578662953,-151.0,0.00019178,2]
[382325073,1756578662963,-151.0,0.00019178,2]
[382325074,1756578662972,-480.0,0.00019178,2]
[382325075,1756578662982,-157.02885445,0.00019452,2]
[382325076,1756578662991,-1044.75,0.00019452,2]
[382325077,1756578663000,-903.61,0.00019452,2]
[382325078,1756578663009,-480.0,0.00019452,2]
[382325079,1756578663019,-480.0,0.00019452,2]
[382325080,1756578663028,-482.32,0.00019452,2]
[382325081,1756578663038,-4570.06,0.00019452,2]
[382325082,1756578663047,-488.94996331,0.00019452,2]
[382325083,1756578663057,-4017.543973,0.00019452,2]
[382325088,1756578746755,182.284887,0.00024,30]
[382325091,1756578810345,-242.55337522,0.000189,3]
[382325093,1756578813277,-183.10344717,0.000189,3]
[382325096,1756579008866,500.0,0.00018467,2]
[382325097,1756579013618,500.0,0.00018012,2]
[382325098,1756579018136,500.0,0.00018012,2]
[382325105,1756579068144,1106.53338086,0.000188,2]
[382325152,1756579280968,509.460905,0.00013699,2]
[382325155,1756579323515,195.0,0.00018485,2]
[382325156,1756579328378,195.0,0.0001844,2]
[382325160,1756579344861,173.170642,0.00024,30]
[382325167,1756579403636,164.51211,0.0002352,30]
[382325168,1756579403926,164.51211,0.00023049,30]
[382325169,1756579404231,164.51211,0.00022578,30]
[382325170,1756579404522,164.51211,0.00022107,30]
[382325171,1756579404817,164.51211,0.00021636,30]
[382325230,1756579832045,-282.0,0.00019004,2]
[382325232,1756579832055,-195.0,0.00019024,2]
[382325234,1756579832064,-160.0,0.00019036,2]
[382325236,1756579832073,-217.34977173,0.00019036,2]
[382325238,1756579832083,-160.0,0.00019036,2]
[382325240,1756579832093,-160.0,0.00019037,2]
[382325242,1756579832102,-300.0,0.00019043,2]
[382325244,1756579832111,-659.0,0.00019043,2]
[382325246,1756579832121,-425.65682239,0.00019044,2]
[382325248,1756579832130,-216.25802849,0.00019044,2]
[382325249,1756579832140,-232.73020027,0.00019044,2]
[382325251,1756579832149,-529.89603018,0.00019044,2]
[382325253,1756579832158,-160.0,0.00019044,2]
[382325255,1756579832168,-845.75060209,0.00019044,2]
[382325257,1756579832177,-160.0,0.00019044,2]
[382325259,1756579832187,-160.0,0.00019044,2]
[382325261,1756579832196,-417.15472785,0.00019044,2]
[382325263,1756579832205,-64.23698063,0.00019066,2]
[382325265,1756579832217,-561.01946318,0.00019066,2]
[382325267,1756579832229,-441.74355619,0.00019066,2]
[382325269,1756579832238,-11361.55901651,0.00019066,2]
[382325271,1756579832250,-382.67977792,0.00019078,2]
[382325273,1756579832259,-1561.4696143,0.00019078,2]
[382325274,1756579832270,-2858.12101997,0.00019078,2]
[382325276,1756579832280,-1000.0,0.00019078,2]
[382325278,1756579832290,-164.51211,0.00019123,2]
[382325280,1756579832299,-304.39350122,0.00019147,2]
[382325282,1756579832312,-78.2862767,0.00019147,2]
[382325285,1756579832322,-187.78006525,0.00019166,2]
[382325287,1756579832331,-200.47032027,0.00019168,3]
[382325289,1756579832343,-1583.37967973,0.00019168,3]
[382325291,1756579832353,-891.92,0.00019168,3]
[382325293,1756579832362,-151.31722309,0.00019168,3]
[382325295,1756579832378,-294.64277691,0.00019168,3]
[382325296,1756579832387,-222.98,0.00019168,3]
[382325297,1756579832396,-668.99,0.00019168,3]
[382325298,1756579832406,-500.0,0.00019173,2]
[382325300,1756579832417,-554.46295892,0.00019173,2]
[382325301,1756579832429,-377.58739239,0.00019173,2]
[382325303,1756579832439,-329.05658181,0.00019173,2]
[382325432,1756579837987,-170.94341819,0.00019173,2]
[382325434,1756579837999,-501.53040005,0.00019173,2]
[382325437,1756579838012,-434.06145482,0.00019173,2]
[382325442,1756579838051,-65.93854518,0.00019173,2]
[382325444,1756579838064,-500.0,0.00019173,2]
[382325446,1756579838077,-500.0,0.00019173,2]
[382325449,1756579838090,-500.0,0.00019173,2]
[382325451,1756579838102,-500.0,0.00019173,2]
[382325453,1756579838115,-68.64437014,0.00019173,2]
[382325661,1756579840351,-144.11305321,0.00019173,2]
[382325663,1756579840364,-500.0,0.00019173,2]
[382325665,1756579840376,-500.0,0.00019173,2]
[382325668,1756579840390,-500.0,0.00019173,2]
[382325670,1756579840403,-500.0,0.00019173,2]
[382325672,1756579840416,-500.0,0.00019173,2]
[382325675,1756579840431,-500.0,0.00019173,2]
[382325677,1756579840444,-500.0,0.00019173,2]
[382325679,1756579840456,-500.0,0.00019173,2]
[382325682,1756579840469,-500.0,0.00019173,2]
[382325684,1756579840479,-500.0,0.00019173,2]
[382325686,1756579840489,-500.0,0.00019173,2]
[382325688,1756579840498,-500.0,0.00019173,2]
[382325690,1756579840508,-500.0,0.00019173,2]
[382325692,1756579840518,-500.0,0.00019173,2]
[382325694,1756579840527,-500.0,0.00019173,2]
[382325696,1756579840537,-502.15233491,0.00019173,2]
[382325698,1756579840547,-500.0,0.00019173,2]
[382325700,1756579840556,-367.51569067,0.00019173,2]
[382325701,1756579840566,-500.0,0.00019173,2]
[382325704,1756579840576,-500.0,0.00019173,2]
[382325706,1756579840585,-322.37188715,0.00019173,2]
[382325724,1756579840881,-490.16888395,0.00019173,2]
[382325725,1756579840921,-476.43121996,0.00019173,2]
[382325726,1756579840935,-227.83406372,0.00019173,2]
[382325727,1756579840944,-500.0,0.00019173,2]
[382325728,1756579840953,-501.60557537,0.00019173,2]
[382325729,1756579840962,-500.0,0.00019173,2]
[382325730,1756579840972,-500.0,0.00019173,2]
[382325731,1756579840982,-500.0,0.00019173,2]
[382325732,1756579840991,-169.9133702,0.00019173,2]
[382325733,1756579841000,-500.0,0.00019173,2]
[382325734,1756579841009,-168.19645854,0.00019173,2]
[382325735,1756579841018,-4.11373018,0.00019173,2]
[382325736,1756579841032,-495.88626982,0.00019173,2]
[382325737,1756579841041,-500.0,0.00019173,2]
[382325738,1756579841050,-252.44391793,0.00019173,2]
[382325739,1756579841059,-500.85274947,0.00019173,2]
[382325740,1756579841069,-500.0,0.00019173,2]
[382325741,1756579841078,-500.0,0.00019173,2]
[382325742,1756579841087,-250.168,0.00019177,2]
[382325743,1756579841096,-500.0,0.00019177,2]
[382325744,1756579841106,-500.0,0.00019177,2]
[382325745,1756579841115,-500.0,0.00019177,2]
[382325747,1756579841125,-176.10384518,0.00019177,2]
[382325748,1756579841135,-186.23376057,0.00019177,2]
[382325749,1756579841144,-242.55337522,0.00019177,2]
[382325751,1756579841153,-346.25796041,0.00019177,2]
[382325753,1756579841163,-500.0,0.00019177,2]
[382325755,1756579841172,-480.0,0.00019178,2]
[382325757,1756579841182,-480.0,0.00019178,2]
[382325759,1756579841191,-480.0,0.00019178,2]
[382325762,1756579841202,-480.0,0.00019178,2]
[382325764,1756579841212,-480.0,0.00019178,2]
[382325766,1756579841222,-480.0,0.00019178,2]
[382325768,1756579841232,-480.0,0.00019178,2]
[382325770,1756579841241,-480.0,0.00019178,2]
[382325772,1756579841251,-456.10223806,0.00019178,2]
[382325774,1756579841260,-500.0,0.00019178,2]
[382325776,1756579841270,-480.0,0.00019178,2]
[382325778,1756579841279,-480.0,0.00019178,2]
[382325780,1756579841289,-581.01,0.00019178,2]
[382325782,1756579841299,-480.0,0.00019178,2]
[382325784,1756579841309,-480.0,0.00019178,2]
[382325786,1756579841319,-480.0,0.00019178,2]
[382325788,1756579841329,-480.0,0.00019178,2]
[382325790,1756579841340,-480.0,0.00019178,2]
[382325792,1756579841350,-480.0,0.00019178,2]
[382325794,1756579841359,-480.0,0.00019178,2]
[382325796,1756579841369,-563.16773665,0.00019178,2]
[382325798,1756579841379,-480.0,0.00019178,2]
[382325820,1756579841596,-480.0,0.00019178,2]
[382325822,1756579841606,-395.54033969,0.00019178,2]
[382325824,1756579841616,-509.69,0.00019178,2]
[382325826,1756579841626,-480.0,0.00019178,2]
[382325828,1756579841636,-480.0,0.00019178,2]
[382325830,1756579841646,-480.0,0.00019178,2]
[382325832,1756579841656,-480.0,0.00019178,2]
[382325834,1756579841666,-480.0,0.00019178,2]
[382325836,1756579841675,-623.74,0.00019178,2]
[382325838,1756579841685,-480.0,0.00019178,2]
[382325840,1756579841696,-480.0,0.00019178,2]
[382325841,1756579841707,-480.0,0.00019178,2]
[382325843,1756579841716,-480.0,0.00019178,2]
[382325845,1756579841726,-480.0,0.00019178,2]
[382325847,1756579841735,-542.02,0.00019178,2]
[382325849,1756579841745,-1691.95,0.00019178,2]
[382325851,1756579841756,-667.72,0.00019178,2]
[382325853,1756579841766,-480.0,0.00019178,2]
[382325855,1756579841776,-480.0,0.00019178,2]
[382325857,1756579841786,-480.0,0.00019178,2]
[382325859,1756579841797,-1352.02,0.00019178,2]
[382325861,1756579841807,-480.0,0.00019178,2]
[382325863,1756579841818,-480.0,0.00019178,2]
[382325865,1756579841830,-480.0,0.00019178,2]
[382325867,1756579841841,-480.0,0.00019178,2]
[382325869,1756579841852,-480.0,0.00019178,2]
[382325871,1756579841861,-480.0,0.00019178,2]
[382325873,1756579841871,-480.0,0.00019178,2]
[382325875,1756579841880,-480.0,0.00019178,2]
[382325877,1756579841890,-480.0,0.00019178,2]
[382325879,1756579841899,-480.0,0.00019178,2]
[382325881,1756579841910,-480.0,0.00019178,2]
[382325883,1756579841920,-809.34,0.00019178,2]
[382325885,1756579841929,-878.91,0.00019178,2]
[382325887,1756579841939,-480.0,0.00019178,2]
[382325889,1756579841949,-565.76,0.00019178,2]
[382325891,1756579841959,-480.0,0.00019178,2]
[382325893,1756579841969,-480.0,0.00019178,2]
[382325895,1756579841978,-480.0,0.00019178,2]
[382325897,1756579841987,-480.0,0.00019178,2]
[382325899,1756579841996,-480.0,0.00019178,2]
[382325901,1756579842005,-523.16,0.00019178,2]
[382325903,1756579842015,-480.0,0.00019178,2]
[382325906,1756579842026,-480.0,0.00019178,2]
[382325908,1756579842036,-480.0,0.00019178,2]
[382325909,1756579842045,-480.0,0.00019178,2]
[382325911,1756579842054,-480.0,0.00019178,2]
[382325913,1756579842064,-528.38,0.00019178,2]
[382325915,1756579842074,-480.0,0.00019178,2]
[382325917,1756579842083,-265.98270356,0.00019178,2]
[382325919,1756579842093,-480.0,0.00019178,2]
[382325921,1756579842102,-480.0,0.00019178,2]
[382325923,1756579842111,-624.05,0.00019178,2]
[382325925,1756579842120,-480.0,0.00019178,2]
[382325927,1756579842129,-500.0,0.00019178,2]
[382325929,1756579842138,-480.0,0.00019178,2]
[382325931,1756579842148,-480.0,0.00019178,2]
[382325933,1756579842157,-480.0,0.00019178,2]
[382325935,1756579842171,-480.0,0.00019178,2]
[382325938,1756579842185,-480.0,0.00019178,2]
[382325940,1756579842195,-549.97,0.00019178,2]
[382325942,1756579842204,-480.0,0.00019178,2]
[382325944,1756579842217,-480.0,0.00019178,2]
[382325946,1756579842230,-480.0,0.00019178,2]
[382325948,1756579842240,-44.71856887,0.00019178,2]
[382325951,1756579842262,-315.27316889,0.00019178,2]
[382327837,1756579862120,-255.92962308,0.000189,2]
[382328058,1756579864345,-46.64681529,0.000189,2]
[382328062,1756579864367,-302.57643837,0.00019089,2]
[382328065,1756579864390,-23.15134187,0.00019168,3]
[382328293,1756579866719,-155.32865813,0.00019168,3]
[382328296,1756579866741,-27.28404873,0.00019168,3]
[382328398,1756579868054,-383.92466213,0.00019168,3]
[382328700,1756579871123,-124.26128914,0.00019168,3]
[382328703,1756579871145,-33.502459,0.00019173,2]
[382328836,1756579872423,733.8409912,0.000188,2]
[382329170,1756579876215,-325.14251269,0.00019173,2]
[382330319,1756579888119,969.24655626,0.000188,2]
[382330995,1756579896597,157.76374814,0.000188,2]
[382335349,1756579944945,153.544637,0.0002352,30]
[382335370,1756579945253,153.544637,0.0002304,30]
[382335372,1756579945569,153.544637,0.0002256,30]
[382335569,1756579947519,153.544637,0.0001879,5]
[382335825,1756579954422,-194.21757123,0.00018958,2]
[382335831,1756579956578,153.26485,0.00024,30]
[382335832,1756579957930,-155.18115816,0.00018958,2]
[382335833,1756579958862,500.0,0.00018012,2]
[382335834,1756579962933,-150.60127061,0.00018958,2]
[382335835,1756579962957,-57.84535417,0.00019078,2]
[382335836,1756579988327,-256.59356965,0.00019078,2]
[382335837,1756579992156,-15.1083933,0.00019078,2]
[382335838,1756579992178,-262.06907459,0.0001915,2]
[382335839,1756579996485,-199.84912844,0.000189,2]
[382335840,1756579996506,-120.76189605,0.0001915,2]
[382335841,1756579998714,-315.84146422,0.0001915,2]
[382335842,1756580002216,-159.46790154,0.0001915,2]
[382335843,1756580002238,-99.21012711,0.00019168,3]
[382335844,1756580003755,-210.99176297,0.00019168,3]
[382335845,1756580005568,153.544637,0.00024,30]
[382335846,1756580005695,153.544637,0.00024,30]
[382335847,1756580006198,-283.39518119,0.00019168,3]
[382335848,1756580008891,-153.9573891,0.00019168,3]
[382335849,1756580130968,-157.64962561,0.00018878,2]
[382335850,1756580134121,-154.35037439,0.00018878,2]
[382335851,1756580134146,-56.53309643,0.000189,2]
[382335852,1756580136335,-246.04334194,0.000189,2]
[382335853,1756580239735,-154.49997804,0.00018935,2]
[382335854,1756580242506,-22.70688999,0.00018935,2]
[382335855,1756580262981,-196.38448002,0.000189,2]
[382335856,1756580267730,-106.19195835,0.000189,2]
[382335858,1756580299059,483.987859,0.00013699,2]
[382335859,1756580340256,214.0,0.00018486,2]
[382335860,1756580345016,214.0,0.0001848,2]
[382335872,1756580545205,153.544637,0.00024,30]
[382335873,1756580557058,153.26485,0.00024,30]
[382335875,1756580594735,-214.0,0.00018866,2]
[382335901,1756580714490,300.7028476,0.00018063,2]
[382335929,1756580828112,-312.0,0.00018997,2]
[382335930,1756580828134,-11361.55901651,0.00018999,2]